{"text_format":"2","workbook":"xlsx","n_sheets":1,"sheets":["Kit_Irrig_Micro_Asp_2_ha_Preço"],"not_rendered":{"charts":0,"images":1,"macros":0,"external_links":0,"defined_names":1,"comments":0,"pivot_tables":0},"unopened":[],"bounds":{"document_bytes":16777216,"sheet_cells":100000,"run_cost":"one","rows_first":2000,"rows_last":500,"rows_between":2000,"halvings":0,"cell_chars":16384,"cell_head_chars":4096},"cells_cut":0,"cells_raw":0,"read":"whole","date_system":"1900"}

{"sheet":"Kit_Irrig_Micro_Asp_2_ha_Preço","index":0,"n_rows":92,"n_cols":8,"rows_kept":92,"cut":false,"hidden":false,"merged":[[5,0,5,5],[91,0,91,4],[7,0,7,5],[8,0,8,5],[9,0,9,5],[14,0,15,0],[14,1,15,1],[14,2,15,2],[14,4,15,4],[14,3,15,3],[14,5,15,5],[11,0,11,5]]}
[null,"                                 MINISTÉRIO DO DESENVOLVIMENTO REGIONAL (MDR)"]
[null,"                                 COMPANHIA DO DESENVOLVIMENTO DOS VALES DO SÃO FRANCISCO E DO PARNAÍBA"]
[null,"                                 ÁREA DE GESTÃO DOS EMPREENDIMENTOS DE IRRIGAÇÃO (AI)"]
[]
[]
["PLANILHA ORÇAMENTÁRIA"]
[]
["SISTEMA DE IRRIGAÇÃO - TIPO MICROASPERSÃO (1ha) e GOTEJAMENTO (1ha)"]
[]
["Manga (1 ha) e Maracujá (1 ha)"]
[]
["LICITAÇÃO"]
[]
[]
["ITEM","DESCRIÇÃO DO MATERIAL","UNID.","QUANT.","PREÇO UNITÁRIO (R$)","VALOR TOTAL (R$)"]
[]
[{"$f":"1","v":1},"Microaspersor anti-inseto de vazão de 80 l/h para uma pressão de serviço de aprox. 11 m.c.a. com coeficiente de variaçao de fabricação e CUC aceitáveis conforme PNBR 04:015.08-015. completo: haste, 1,5 m de microtubo DN 7 mm e conector compatível material com proteção contra oxidação e U.V. (garantia mínima 3 anos)","und.",420,null,{"$f":"D17*E17","v":0},null,6.41]
[{"$f":"A17+1","v":2},"Botão gotejador aucompensante, desmontável, anti-drenante, autolimpante de 12 l/h para uma pressão de serviço de aprox. 12 m.c.a e coeficiente de variação de fabricação(CVf) inferior a 5% e filtragem necessaria não superior a 120 mesh, conforme ISO 9261:2004, com proteção contra oxidação e U.V. (garantia mínima 3 anos).","und.",2750,null,{"$f":"D18*E18","v":0},null,4.82]
[{"$f":"A18+1","v":3},"Tubo de PELBD de diâmetro nominal mínimo 20 mm e PN30 ( com espessura mínima de 1mm e tratamento contra  U.V. e oxidação). Garantia 5 anos.","metro",1920,null,0,null,11.24]
[4,"Tubo de PELBD de diâmetro nominal mínimo 16 mm e PN30 ( com espessura mínima de 1mm e tratamento contra  U.V. e oxidação). Garantia 5 anos.","metro",3320,null,0,null,9.2899999999999991]
[5,"Tubo de PVC DN 50mm irriga LF PN 40 (Garantia 3 anos)","peça de 6m",106,null,0,null,11.59]
[6,"Tubo de PVC DN 35mm irriga LF PN 40 (Garantia 3 anos)","peça de 6m",12,null,0,null,0.94]
[7,"Conector inicial  PELBD de 16 mm para PVC","und.",72,null,0,null,0.11]
[8,"Conector inicial  PELBD de 20 mm para PVC","und.",42,null,0,null,0.08]
[9,"Anel de retenção (chula) para conector inicial de 16 mm para PVC","und.",72,null,0,null,0.09]
[10,"Anel de retenção (chula) para conector inicial de 20 mm para PVC","und.",42,null,0,null,7.0000000000000007E-2]
[11,"Final de linha para PELBD de 16mm (tipo 8)","und.",42,null,0,null,0.02]
[12,"Final de linha para PELBD de 20mm (tipo 8)","und.",72,null,0,null,0.15]
[13,"Cap soldável  de 35 mm para PVC irriga LF","und.",16,null,0,null,0.25]
[14,"Redução  Soldável Irriga LF de 50 para 35mm ","und.",16,null,0,null,0.28000000000000003]
[15,"Tê de PVC soldável Irriga LF de 50mm","und.",10,null,0,null,0.28999999999999998]
[16,"Registro de esfera PVC soldável de 50mm irriga","und.",12,null,0,null,0.91]
[17,"Adesivo plástico extraforte para PVC , pote de 850g","und.",1,null,0,null,0.19]
[18,"Solução Limpadora para PVC, frasco de 1 litro","und.",2,null,0,null,0.48]
[19,"Lixa d'água n.º 120, folha de 30 cm","und.",15,null,0,null,0.14000000000000001]
[20,"Estopa de limpeza","kg",1,null,0,null,0.04]
[21,"Fita veda rosca de 18 mm","50 m",1,null,0,null,0.05]
[22,"Adaptador BS x RM Curto Irriga LF 50mm para 2 pol.","und.",4,null,0,null,0.06]
[23,"Registro de gaveta bruto em latão de 2 pol.","und.",1,null,0,null,0.56999999999999995]
[24,"Bucha Pvc Irrigação Redução Soldavel Dn50 X 1''","und.",2,null,0,null,0.02]
[25," Niple paralelo Rosqueável 1 pol.","und.",1,null,0,null,0.02]
[26," Niple paralelo Rosqueável 1.1/2 pol.","und.",1,null,0,null,0.03]
[27,"Bucha de redução de 1 pol. para 3/4 pol.","und.",3,null,0,null,0.06]
[28,"Bucha de redução de 3/4 pol. para 1/4 pol.","und.",2,null,0,null,0.02]
[29,"Manômetro de glicerina de até 6 kgf/cm2 rosca de 1/4 pol.","und.",2,null,0,null,0.34]
[30,"Luva De Redução 2' X 1.1/2'  Fêmea-fêmea Bsp Galvanizada","und.",1,null,0,null,0.08]
[31,"Adaptador espigão de PEAD,  rosca externa de 2 Pol. (irriga)","und.",1,null,0,null,0.04]
[32,"Mangote de sucção de 2 pol.","metro",5,null,0,null,0.48]
[33,"Válvula de pé com crivo de 2 pol.","und.",1,null,0,null,0.28999999999999998]
[34,"Válvula de Retenção Vertical em Latão 2\" Rosca BSP","und.",1,null,0,null,0.51]
[35,"Braçadeiras de 2 polegadas para fixação do mangote de sucção ","und.",2,null,0,null,0.09]
[36,"Redução concêntrica de 2 pol.  para 1 ½ pol.","und.",1,null,0,null,0.08]
[37,"Furador de mangueira PELBD para encaixe de conector do microtubo","und.",1,null,0,null,0.11]
[38,"Joelho Soldavel 90° Irrigação DN50","und.",40,null,0,null,0.78]
[39,"Luva PVC Mista Solda X Rosca 50mm X 2' Irriga","und.",4,null,0,null,0.17]
[40,"Curva 90º Soldável LF irriga  DN50","und.",3,null,0,null,0.12]
[41,"Válvula ventosa dupla função de 3/4' com proteção UV e oxidação.","und.",8,null,0,null,0.59]
[42,"Vávula ventosa combinada/tríplice função DN20 (3/4') rosca macho. Faixa de pressão operacional – 1 a 100 mca.","und.",1,null,0,null,0.14000000000000001]
[43,"Filtro de disco de 120 mesh  (0,178mm) para vazão 20 m³/h  de 2 pol.","und.",2,null,0,null,0.68]
[44,"Adaptador curto (agro) DN32 para 1 pol.","und.",7,null,0,null,0.06]
[45,"Tê com redução e derivação roscável de 50mm para 3/4' irriga","und.",8,null,0,null,0.19]
[46,"Tê com redução e derivação roscável de 50 mm para 1 pol.","und.",3,null,0,null,7.0000000000000007E-2]
[47,"Joelho 90º Soldável (agro) DN32","und.",5,null,0,null,0.05]
[48,"Kit injetor venturi de 1pol. com mangueira e filtro de entrada do fertilizante","und.",1,null,0,null,0.67]
[49,"Registro de esfera PVC soldável de 32mm irriga","und.",3,null,0,null,0.15]
[50,"Tubo de PVC DN 32mm (agro) PN 120","metro",3,null,0,null,0.26]
[51,"Tê de PVC soldável  de 32mm","und.",1,null,0,null,0.02]
[52,"Caixa d'água com tampa de polietileno de 500 litros","und.",1,null,0,null,0.77]
[53,"União soldável de 32mm (agro)","und.",2,null,0,null,0.09]
[54,"Motobomba periférica (boster para fertirrigação) maior que 1/2 cv até 1cv  de 220v (monofásico-fase/neutro); classe de isolamento B; IP 55, partida direta; com regime de serviço contínuo, com bomba com as caracteristicas de vazão com mais de 1,6 m³/h para uma altura manométrica de 50 m.c.a . Sucção e recalque de 1 pol.( Garantia mínima de 2 anos)","und.",1,null,0,null,3.58]
[55,"Cabo de cobre flexível, classe 4 ou 5, isolação em HEPR, cobertura em PVC-ST2, antichama BWF-B, 0,6/1 kV, seção de 16 mm² (cor preta)","metro",100,null,0,null,4.4800000000000004]
[56,"Cabo de cobre flexível, classe 4 ou 5, isolação em HEPR, cobertura em PVC-ST2, antichama BWF-B, 0,6/1 kV, seção de 16 mm² (cor azul)","metro",100,null,0,null,4.4800000000000004]
[57,"Cabo de cobre flexível, classe 4 ou 5, isolação em PVC/A, cobertura em PVC-ST1, antichama BWF-B, 450/750 V, seção de 16 mm² (cor verde)","metro",100,null,0,null,4.4800000000000004]
[58,"Eletroduto flexível corrugado PEAD  1 1/4'' (DN 40mm)","metro",100,null,0,null,3.83]
[59,"Caixa de passagem em concreto 30x30x30 cm com tampa","unidade",3,null,0,null,0.28000000000000003]
[60,"Curva 90 graus de ferro galvanizado a fogo, com rosca BSP macho/fêmea, de 1'' (DN 25mm)","unidade",2,null,0,null,0.11]
[61,"Eletroduto de ferro galvanizado a fogo com rosca BSP de 1'' (DN 25mm) - Barra de 3 metros ","unidade",1,null,0,null,0.16]
[62,"Luva para eletroduto em aço galvanizado a fogo, diâmetro de 25 mm (1'')","unidade",1,null,0,null,0.11]
[63,"Conector reto com rosca de 1'' (DN 25 mm)","unidade",2,null,0,null,0.02]
[64,"Bucha e arruela em alumínio para eletroduto de 1'' com rosca","unidade",2,null,0,null,0.01]
[65,"Abraçadeira tipo D com cunha de aço galvanizado para eletroduto de 1'' (DN 25 mm)","unidade",4,null,0,null,0.01]
[66,"Quadro de comando para disjuntores e acionamento das motobombas, grau de proteção mínimo IP54, dimensões mínimas 400x300x200 mm","unidade",1,null,{"$f":"D82*E82","v":0},null,0.36]
[{"$f":"A82+1","v":67},"Disjuntor Diferencial Residual (DDR) bipolar 32 A, mín. 3kA (220V), Curva C","unidade",1,null,0,null,0.85]
[68,"Disjuntor Monofásico 20 A, mín. 3kA (220V), Curva C","unidade",1,null,0,null,0.02]
[69,"Disjuntor Monofásico 16 A, mín. 3kA (220V), Curva C","unidade",1,null,0,null,0.02]
[70,"Chave magnética de partida direta para motor de 1 CV com relé térmico e relé falta de fase, monofásica 220 V","unidade",1,null,0,null,0.36]
[71,"Chave magnética de partida direta para motor de 2 CV com relé térmico e relé falta de fase, monofásica 220 V","unidade",1,null,0,null,0.45]
[72,"Cabo multipolar de cobre, flexível, classe 4 ou 5, isolação em HEPR, cobertura em PVC-ST2, antichama BWF-B, 0,6/1 kV, 3 condutores de 10 mm²","metro",12,null,0,null,0.68]
[73,"Relé temporizador e contator 220V 10A","und.",1,null,0,null,0.18]
[74,"Motobomba: de motor de 2 CV de 220v (monofásico-fase/neutro); classe de isolamento B, IP55; partida direta; com regime de serviço contínuo, com bomba com as caracteristicas de vazão de 8 m³/h para uma altura manométrica de 33 m.c.a com eficiencia mínima de 60%.  Sucção de 1 ½ pol. e recalque de 1 pol. (Garantia mínima de 5 anos)","und.",1,null,0,null,6.48]
[75,"Montagem e instalação","serviço",{"$f":"1","v":1},null,0,null,14]
["Total",{"$nulls":4},{"$f":"SUM(F17:F91)","v":0},null,{"$f":"SUM(H17:H91)","v":100.00000000000001}]